Cogmind - Beta 10.2 @@@ ROGUE MODE // 2021.04.30 @ 03:05:29 Player: Cinquain Result: Destroyed by Y-45 Defender with Heavy Assault Rifle Performance ------------- Evolutions (0) 0 Regions Visited (2) 400 Robots Destroyed (17) 85 Value Destroyed (343) 343 Prototype IDs (0) 0 Alien Tech Used (0) 0 Bonus (0) 0 TOTAL SCORE: 828 Bonus ------- None Cogmind --------- Core Integrity 0/250 Matter 216/300 Energy 100/100 System Corruption 2% Temperature Cool (9) Movement Rolling (100) Ox1 Location -10/Mines Parts ------- > --- POWER (1) -------- (None) > --- PROPULSION (2) --- Armored Wheel Armored Wheel > --- UTILITY (2) ------ Medium Storage Unit High-capacity Storage Unit > --- WEAPON (2) ------- Autogun Autogun > --- INVENTORY (16) --- Wheel Compact Wheel Armored Wheel Armored Wheel Improved Sensor Array Hacking Suite Assault Rifle Assault Rifle Grenade Launcher Peak State ------------ > --- POWER ------------ Light Ion Engine > --- PROPULSION ------- Armored Wheel Armored Wheel > --- UTILITY ---------- Small Storage Unit Medium Storage Unit > --- WEAPON ----------- Autogun Light Cannon > --- INVENTORY -------- Wheel Compact Wheel Armored Wheel Armored Wheel Hacking Suite Medium Laser Assault Rifle Assault Rifle Grenade Launcher [Rating: 11] Favorites ----------- Power Light Ion Engine Engine Light Ion Engine Propulsion Aluminum Leg Treads Light Treads Leg Aluminum Leg Wheel Armored Wheel Utility Medium Storage Unit Storage Medium Storage Unit Weapon Light Cannon Energy Gun Medium Laser Ballistic Gun Autogun Ballistic Cannon Light Cannon Build | -11 -10 -10 ------- Run | Scr Mat Min Slots Evolved . | . . . Power . | . . . Propulsion . | . . . Utility . | . . . Weapon . | . . . Parts Attached 19 | 7 11 1 Power 3 | 1 2 . Engine 3 | 1 2 . Core . | . . . Reactor . | . . . Propulsion 7 | 3 4 . Treads 1 | 1 . . Leg 4 | 2 2 . Wheel 2 | . 2 . Hover . | . . . Flight . | . . . Utility 3 | 1 2 . Device . | . . . Storage 3 | 1 2 . Processor . | . . . Hackware . | . . . Protection . | . . . Artifact . | . . . Weapon 6 | 2 3 1 Energy Gun 1 | 1 . . Energy Cannon . | . . . Ballistic Gun 3 | 1 1 1 Ballistic Cannon 2 | . 2 . Launcher . | . . . Special Weapon . | . . . Impact Weapon . | . . . Slashing Weapon . | . . . Piercing Weapon . | . . . Special Melee Weapon . | . . . Unidentified Prototypes . | . . . Parts Lost 3 | . 1 2 Power 2 | . 1 1 Propulsion . | . . . Utility . | . . . Weapon 1 | . . 1 Highest Loss Streak 2 | . 1 2 Average Slot Usage (%) 88 | . 88 92 Engine 9 | . 9 7 Leg 14 | . 14 . Wheel 13 | . 12 28 Storage 25 | . 25 28 Energy Gun 3 | . 3 . Ballistic Gun 10 | . 9 21 Ballistic Cannon 10 | . 10 7 Naked Turns . | . . . Heaviest Build 49 | 11 49 49 Greatest Support 24 | 20 24 24 Greatest Overweight (x) 3 | . 3 2 Average Overweight (x) . | . . 1 Largest Inventory Capacity 16 | 6 16 16 Average Capacity 10 | 5 10 16 Most Carried 10 | 6 10 10 Average Carried 8 | 4 8 9 Final Capacity 16 | 6 16 16 Final Carried 10 | 6 10 9 Class Distribution -------------------- 100% | Mutant Dominant Class ---------------- Mutant | -10/Materials Mutant | -10/Mines Resources | -11 -10 -10 ----------- Run | Scr Mat Min Matter Collected 598 | 221 377 . Remotely . | . . . Salvage Created 459 | . 404 55 Parts 28 | . 25 3 Haulers Intercepted 2 | . 2 . Recyclers Shooed . | . . . Parts Field Recycled . | . . . Retrieved Matter . | . . . Parts Self-Destructed . | . . . Prevented . | . . . Kills | -11 -10 -10 ------- Run | Scr Mat Min Combat Hostiles Destroyed 13 | . 12 1 Guns 7 | . 6 1 Cannons 6 | . 6 . Classes Destroyed 6 | . 5 1 Worker 1 | . 1 . Hauler 2 | . 2 . Operator 1 | . 1 . Swarmer 6 | . 6 . Grunt 6 | . 6 . Sentry 1 | . . 1 Best Kill Streak 3 | . 3 1 Combat Bots Only 3 | . 3 1 Max Kills in Single Turn 1 | . 1 1 Gunslinging . | . . . Exploded . | . . . Melee . | . . . Uniques/NPCs Destroyed . | . . . Combat | -11 -10 -10 -------- Run | Scr Mat Min Damage Taken 1027 | . 644 383 Core 263 | . 141 122 Absorbed by Shields . | . . . Core Remaining (%) 100 | 100 . . Volleys Fired 54 | . 43 11 Largest 2 | . 2 2 Hottest 70 | . 70 58 Shots Fired 92 | . 71 21 Gun 58 | . 40 18 Cannon 34 | . 31 3 Launcher . | . . . Special . | . . . Kinetic 80 | . 59 21 Thermal 12 | . 12 . Explosive . | . . . Electromagnetic . | . . . Robot Hit Streak 8 | . 8 5 Robot Miss Streak 4 | . 4 2 Penetration Max . | . . . Secondary Targets 3 | . 3 . Max Gunslinging Chain 1 | . 1 . Shots Hit Robots 55 | . 42 13 Core Hits 23 | . 20 3 Critical Hits . | . . . Critical Kills . | . . . Critical Parts Destroyed . | . . . Melee Attacks . | . . . Impact . | . . . Slashing . | . . . Piercing . | . . . Sneak Attacks . | . . . Combat Hostiles . | . . . Follow-up Attacks . | . . . Damage Inflicted 778 | . 627 151 Guns 477 | . 326 151 Cannons 301 | . 301 . Explosions . | . . . Melee . | . . . Ramming . | . . . Kinetic 655 | . 504 151 Thermal 123 | . 123 . Explosive . | . . . Electromagnetic . | . . . Impact . | . . . Slashing . | . . . Piercing . | . . . Highest Corruption 2 | . 2 2 Average Corruption 1 | . 1 2 Corruption Purged . | . . . Effects 7 | . 6 1 Message Errors 1 | . 1 . Heat Flow Errors 1 | . 1 . Data Loss (minor) 1 | . 1 . Targeting Errors 4 | . 3 1 Overload Shots . | . . . Overflow Damage . | . . . Projectiles . | . . . Explosions . | . . . Melee . | . . . Knockbacks 4 | . 4 . Impact . | . . . Kinetic 4 | . 4 . Secondary . | . . . Self-Inflicted Damage . | . . . Shots . | . . . Rammed . | . . . Targets Rammed . | . . . Kicked . | . . . Crushed . | . . . Highest Temperature 164 | . 164 53 Average Temperature 47 | . 54 16 Received Heat Transfer 339 | . 222 117 Siege Activations . | . . . Robots Corrupted . | . . . Combat Hostiles . | . . . Parts Fried . | . . . Impact Corruptions . | . . . Robots Melted . | . . . Combat Hostiles . | . . . Parts Melted 3 | . 3 . Heat Transferred 370 | . 370 . Parts Sabotaged . | . . . Parts Stolen . | . . . Parts Stripped . | . . . Power Chain Reactions . | . . . Missiles Intercepted . | . . . Alert | -11 -10 -10 ------- Run | Scr Mat Min Peak Influence 256 | . 256 20 Initial 4 | . . 4 Average 84 | . 94 16 Maximum Alert Level 1 | . 1 . Low Security (%) 93 | 100 93 100 Level 1 6 | . 6 . Level 2 . | . . . Level 3 . | . . . Level 4 . | . . . Level 5 . | . . . High Security . | . . . Max Security . | . . . Squads Dispatched 2 | . 2 . Investigation 1 | . 1 . Extermination . | . . . Reinforcement 1 | . 1 . Assault . | . . . Garrison . | . . . Intercept . | . . . Construction Impeded . | . . . Haulers Reinforced . | . . . Stealth | -11 -10 -10 --------- Run | Scr Mat Min Distress Signals . | . . . Communications Jammed . | . . . Distress Signals . | . . . Times Spotted 21 | . 19 2 Peak Tracking Total 4 | . 4 2 Tactical Retreats . | . . . Traps | -11 -10 -10 ------- Run | Scr Mat Min Traps Triggered 5 | . 5 . Indirectly . | . . . Trap Hack Attempts . | . . . Triggered . | . . . Disarmed . | . . . Reprogrammed . | . . . Reused . | . . . Traps Extracted . | . . . Installed . | . . . Triggered . | . . . Machines | -11 -10 -10 ---------- Run | Scr Mat Min Machines Disabled . | . . . Max in Single Turn . | . . . Machines Sabotaged . | . . . Garrisons Compromised . | . . . Overloaded Fab Kills . | . . . Fab Network Shutdowns . | . . . Hacking | -11 -10 -10 --------- Run | Scr Mat Min Machines Accessed 8 | . 8 . Terminals 6 | . 6 . Fabricators . | . . . Repair Stations 1 | . 1 . Recycling Units 1 | . 1 . Scanalyzers . | . . . Garrison Access . | . . . Total Hacks 19 | . 19 . Successful 8 | . 8 . Failed 11 | . 11 . Catastrophic . | . . . Database Lockouts . | . . . Manual 16 | . 16 . Terminals 17 | . 17 . Fabricators . | . . . Repair Stations 1 | . 1 . Recycling Units 1 | . 1 . Scanalyzers . | . . . Garrison Access . | . . . Terminal Hacks 1 | . 1 . Hauler Manifests 1 | . 1 . Fabricator Hacks . | . . . Repair Station Hacks 1 | . 1 . Scan Component 1 | . 1 . Recycling Unit Hacks 1 | . 1 . Report Inventory 1 | . 1 . Scanalyzer . | . . . Garrison Access Hacks . | . . . Unauthorized Hacks 5 | . 5 . Terminals 5 | . 5 . Track 3 | . 3 . Botnet 1 | . 1 . Operators 1 | . 1 . Fabricators . | . . . Repair Stations . | . . . Recycling Units . | . . . Scanalyzers . | . . . Garrison Access . | . . . Data Cores Recovered . | . . . Used . | . . . Hacking Detections 5 | . 5 . Full Trace Events 1 | . 1 . Feedback Events . | . . . Feedback Blocked . | . . . Robot Schematics Acquired . | . . . Robots Built . | . . . Matter . | . . . Time . | . . . Total Robot Build Rating . | . . . Part Schematics Acquired . | . . . Parts Built . | . . . Matter . | . . . Time . | . . . Total Part Build Rating . | . . . Parts Repaired . | . . . Time . | . . . Parts Recycled . | . . . Recycled Matter . | . . . Retrieved Matter . | . . . Retrieved Components . | . . . Parts Scanalyzed . | . . . Part Schematics Acquired . | . . . Parts Damaged . | . . . Bothacking | -11 -10 -10 ------------ Run | Scr Mat Min Used RIF Installer . | . . . Robots Hacked . | . . . Non-combat . | . . . Combat . | . . . Robot Hacks Applied . | . . . Relay Couplers Released . | . . . Robots Rewired . | . . . Allies Hacked . | . . . Hacks Repelled . | . . . Allies | -11 -10 -10 -------- Run | Scr Mat Min Total Allies . | . . . Largest Group . | . . . Highest-Rated Group . | . . . Highest-Rated Ally . | . . . Total Orders . | . . . Ally Attacks . | . . . Total Damage . | . . . Kills . | . . . Allies Corrupted . | . . . Allies Melted . | . . . Intel | -11 -10 -10 ------- Run | Scr Mat Min Robot Analysis Total . | . . . Derelict Logs Recovered . | . . . Drone Launches . | . . . Drone Recoveries . | . . . Exploration | -11 -10 -10 ------------- Run | Scr Mat Min Turns Passed 991 | 67 882 42 Spaces Moved 720 | 47 667 6 Core 12 | 10 2 . Treads 4 | 4 . . Legs 341 | 33 308 . Wheels 363 | . 357 6 Hover . | . . . Flight . | . . . Fastest Speed 50 | 50 90 100 Average Speed 109 | 108 109 108 Slowest Speed 200 | 160 200 110 Overloaded Moves . | . . . Propulsion Burnouts . | . . . Robots Hopped . | . . . Cave-ins Triggered . | . . . Exploration Rate (%) 32 | 3 85 8 Regions Visited 2 Branch Regions 1 Pre-discovered Areas . | . . . Known Exits Taken . | . . . Unknown Exits Taken 2 | 1 1 . Scrap Searched . | . . . Spaces Dug . | . . . Terrain Destroyed . | . . . Melee . | . . . Projectile . | . . . AOE . | . . . Terrain Rammed . | . . . Walls Destroyed . | . . . Machines Disabled . | . . . Actions | -11 -10 -10 --------- Run | Scr Mat Min Total 834 | 59 750 25 Wait 20 | . 13 7 Move 718 | 46 666 6 Hop . | . . . Pick Up 17 | 6 11 . Fast Attach 11 | 6 5 . Attach 5 | . 4 1 Detach . | . . . Swap 3 | 1 2 . Drop 6 | . 6 . Fire 54 | . 43 11 Melee . | . . . Ram . | . . . Kick . | . . . Crush . | . . . Escape Stasis . | . . . Rewire . | . . . Trap . | . . . Miscellaneous . | . . . Route ------- -11/Scrapyard -10/Materials (discovered 4 exits: [*Mat x3] / [*Min]) -10/Mines History --------- Turn | Location | Event 11 | -11/Scrapyard | Discovered new exit (range 16) 68 | -11/Scrapyard | Entered Materials 219 | -10/Materials | Discovered new exit (range 16) 335 | -10/Materials | Build established: Mutant 515 | -10/Materials | Discovered new exit (range 10) 589 | -10/Materials | Discovered new exit (range 15) 694 | -10/Materials | Discovered new exit (range 10) 787 | -10/Materials | Core integrity fell below 50% 950 | -10/Materials | Entered Mines 975 | -10/Mines | Core integrity fell below 20% 992 | -10/Mines | Destroyed by Y-45 Defender with Heavy Assault Rifle Last Messages --------------- 00785_ Acquired 41 matter. 00786_ K-01 Serf collects debris. 00786_ G-34 Mercenary destroyed. 00788_ K-01 Serf collects debris. 00794_ System corrupted: Autogun targeting data glitched. 00794_ G-34 Mercenary destroyed. 00795_ K-01 Serf collects debris. 00798_ Acquired 25 matter. 00798_ K-01 Serf collects debris. 00799_ Acquired 19 matter. 00802_ K-01 Serf collects debris. 00805_ Acquired 13 matter. 00807_ K-01 Serf collects debris. LOCATION=UNKNOWN GOAL=ESCAPE 00966_ System corrupted: Lgt. Cannon targeting data glitched. 00970_ Critical hit. 00970_ Lgt. Cannon destroyed. 00973_ Lgt. Ion Engine destroyed. 00974_ Y-45 Defender destroyed. Map ----- +----------------------------------------------------+ | ?????????????????????????????????????????????????? | | ?????????????????????????????????????????????????? | | ?????????????????????????????????????????????????? | | ?????????????????????????????????????????????????? | | ?????????????????????????????????????????????????? | | ?????????????????????????????????????????????????? | | ?????????????????????????????????????????????????? | | ?????????????????????????????????????????????????? | | ?????????????????????????????????????????????????? | | ?????????????????????????????????????????????????? | | ???????????????????????????? #??????????????????? | | ???????????????????????????? #?????????????????? | | ???????????????????????????? #?????????????????? | | ???????????????????????????? ##????????????????? | | ???????????????????????????? ######???????????? | | ???????????????????????????? ???????????? | | ???????????????????????????? t ???????????? | | ???????????????????????????? #????????????? | | ???????????????????????????? ??????????????? | | ????????????????????????????# ???????????????? | | ????????????????????????????# ????????????????? | | ????????????????????????????# #?????????????????? | | ????????????????????????##### ###???????????????? | | ???????????????????##|??# #???????????????? | | ???????????????????#"![ #! #???????????????? | | ???????????????????# %/@ #???????????????? | | ???????????????????# Y= #???????????????? | | ???????????????????#"!| # #???????????????? | | ???????????????????##!!## #???????????????? | | ????????????????????###?### #???????????????? | | ??????????????????????????#### ##???????????????? | | ?????????????????????????????? #????????????????? | | ?????????????????????????????? #????????????????? | | ?????????????????????????????? #????????????????? | | ?????????????????????????????? ????????????????? | | ?????????????????????????????? ????????????????? | | ???????????????????????????????###???????????????? | | ?????????????????????????????????????????????????? | | ?????????????????????????????????????????????????? | | | | | | | | | | | | | | | | | | | | | | | +----------------------------------------------------+ Best States ------------- Heat Dissipation 25 Energy Generation 10 Energy Capacity 125 Matter Stores 300 Matter Capacity 300 Sight Range 16 Terrain Scan Density 10 Evasion (%) 50 Recoil Reduction 1 Item Schematics ----------------- None Robot Schematics ------------------ None Fabricated ------------ Nothing Alien Tech Used ----------------- None Achievements -------------- None Challenges ------------ None Game ------ Seed CryofiberScatterFrame Manual? 0 Play Time 00:10:12 Cumulative 77.6 hours Start 2021.04.30 @ 01:49:14 End 2021.04.30 @ 03:05:29 Sessions 3 Manual Loads 0 Difficulty Rogue Special Mode None Game No. 39 Rogue 36 Adventurer 3 Explorer 0 Win Type - Total 3 Types 2/0/0/1/0/0/0/0/0 Lore% 41 Gallery% 40 Achievement% 38 Wizard Run 0 Options --------- ASCII 0 Keyboard 0 Movement Mouse Keybinds 0 Fullscreen 1 Font 24/Terminus Map View 76x50 Tactical HUD 1 Map Filters NONE Filters NONE Steam 1 RUN: e395fb88-89f1-4272-95df-787ae72f6fbf